[Event "Late-Titled-Tuesday-Blitz-June-18-2024"]
[Site "Chess.com"]
[Date "2024.06.18"]
[Round "11"]
[White "PhileKhoob"]
[Black "campochess"]
[Result "0-1"]
[WhiteElo "2329"]
[BlackElo "2202"]
[TimeControl "180+1"]
[EndTime "16:04:16 PDT"]
[Termination "campochess won on time"]

1. Nf3 {[%clk 0:03:00.9]} 1... c5 {[%clk 0:02:59.9]} 2. g3 {[%clk 0:02:59.7]}
2... Nc6 {[%clk 0:02:59.9]} 3. d4 {[%clk 0:02:59.6]} 3... cxd4 {[%clk
0:02:58.7]} 4. Nxd4 {[%clk 0:03:00.3]} 4... Nf6 {[%clk 0:02:55.1]} 5. Bg2 {[%clk
0:02:56.6]} 5... g6 {[%clk 0:02:55.3]} 6. c4 {[%clk 0:02:52.5]} 6... Bg7 {[%clk
0:02:55.1]} 7. O-O {[%clk 0:02:52.9]} 7... O-O {[%clk 0:02:54.9]} 8. Nc3 {[%clk
0:02:51.1]} 8... a6 {[%clk 0:02:53.5]} 9. b3 {[%clk 0:02:43.4]} 9... Ng4 {[%clk
0:02:53]} 10. e3 {[%clk 0:02:39.7]} 10... Qa5 {[%clk 0:02:47.8]} 11. Bb2 {[%clk
0:02:18.5]} 11... Nxd4 {[%clk 0:02:43.6]} 12. exd4 {[%clk 0:02:14]} 12... d6
{[%clk 0:02:43.5]} 13. Nd5 {[%clk 0:02:02.8]} 13... Qd8 {[%clk 0:02:41.6]} 14.
Re1 {[%clk 0:01:26.1]} 14... Re8 {[%clk 0:02:40.1]} 15. h3 {[%clk 0:01:12.4]}
15... Nh6 {[%clk 0:02:39.3]} 16. g4 {[%clk 0:00:48.2]} 16... Kh8 {[%clk
0:02:29.8]} 17. Qd2 {[%clk 0:00:20]} 17... Ng8 {[%clk 0:02:29.6]} 18. Re2 {[%clk
0:00:13.4]} 18... Rb8 {[%clk 0:02:28.2]} 19. Rae1 {[%clk 0:00:12.3]} 19... b5
{[%clk 0:02:27.9]} 20. Qc2 {[%clk 0:00:08.6]} 20... bxc4 {[%clk 0:02:27.2]} 21.
bxc4 {[%clk 0:00:09.5]} 21... Bb7 {[%clk 0:02:26.7]} 22. Bc3 {[%clk 0:00:06.1]}
22... Bxd5 {[%clk 0:02:26.5]} 23. Bxd5 {[%clk 0:00:04.7]} 23... e6 {[%clk
0:02:16.3]} 24. Bc6 {[%clk 0:00:04.7]} 24... Re7 {[%clk 0:02:15.7]} 25. d5
{[%clk 0:00:04.9]} 25... e5 {[%clk 0:02:14.9]} 0-1

[Event "Late-Titled-Tuesday-Blitz-June-18-2024"]
[Site "Chess.com"]
[Date "2024.06.18"]
[Round "11"]
[White "GHANDEEVAM2003"]
[Black "GoltsevDmitry2000"]
[Result "1-0"]
[WhiteElo "2981"]
[BlackElo "2732"]
[TimeControl "180+1"]
[EndTime "16:04:35 PDT"]
[Termination "GHANDEEVAM2003 won on time"]

1. e4 {[%clk 0:03:00.9]} 1... e6 {[%clk 0:02:56.5]} 2. Nf3 {[%clk 0:02:59.3]}
2... d5 {[%clk 0:02:55.5]} 3. Nc3 {[%clk 0:03:00]} 3... Nf6 {[%clk 0:02:54.2]}
4. e5 {[%clk 0:02:57.9]} 4... Nfd7 {[%clk 0:02:48.6]} 5. d4 {[%clk 0:02:58.2]}
5... c5 {[%clk 0:02:49]} 6. dxc5 {[%clk 0:02:59]} 6... Bxc5 {[%clk 0:02:48.4]}
7. Bf4 {[%clk 0:02:57.1]} 7... Qb6 {[%clk 0:02:42.7]} 8. Qd2 {[%clk 0:02:46.6]}
8... Bxf2+ {[%clk 0:02:23.6]} 9. Qxf2 {[%clk 0:02:35.1]} 9... Qxb2 {[%clk
0:02:23]} 10. Nb5 {[%clk 0:02:35.7]} 10... Qxa1+ {[%clk 0:02:20]} 11. Kd2 {[%clk
0:02:36.3]} 11... O-O {[%clk 0:02:08.9]} 12. Qh4 {[%clk 0:01:59.4]} 12... f5
{[%clk 0:01:28.9]} 13. Ng5 {[%clk 0:01:59.1]} 13... h6 {[%clk 0:01:12.2]} 14.
Nxe6 {[%clk 0:01:59.7]} 14... Rf7 {[%clk 0:00:55.2]} 15. Nd6 {[%clk 0:01:46.9]}
15... Nxe5 {[%clk 0:00:34.4]} 16. Qd8+ {[%clk 0:01:45]} 16... Kh7 {[%clk
0:00:34.4]} 17. Qxc8 {[%clk 0:01:45.6]} 17... g5 {[%clk 0:00:01.9]} 18. Bxe5
{[%clk 0:01:41.4]} 18... Qxe5 {[%clk 0:00:02.1]} 19. Nxf7 {[%clk 0:01:42.1]}
19... Qxe6 {[%clk 0:00:01.5]} 20. Qxe6 {[%clk 0:01:41.7]} 1-0

[Event "Late-Titled-Tuesday-Blitz-June-18-2024"]
[Site "Chess.com"]
[Date "2024.06.18"]
[Round "11"]
[White "ArmanGhevondyanchess"]
[Black "AlexeiShirov"]
[Result "0-1"]
[WhiteElo "2613"]
[BlackElo "2874"]
[TimeControl "180+1"]
[EndTime "16:05:07 PDT"]
[Termination "AlexeiShirov won by resignation"]

1. Nf3 {[%clk 0:03:00.1]} 1... d5 {[%clk 0:02:59.4]} 2. d4 {[%clk 0:03:00.5]}
2... Nf6 {[%clk 0:02:59.2]} 3. g3 {[%clk 0:03:01.1]} 3... c5 {[%clk 0:02:58.4]}
4. Bg2 {[%clk 0:03:01.1]} 4... cxd4 {[%clk 0:02:58.3]} 5. O-O {[%clk 0:03:01.6]}
5... h6 {[%clk 0:02:58.2]} 6. b3 {[%clk 0:02:59]} 6... e6 {[%clk 0:02:57.1]} 7.
Bb2 {[%clk 0:02:58.5]} 7... Bc5 {[%clk 0:02:51.2]} 8. Nxd4 {[%clk 0:02:49.2]}
8... e5 {[%clk 0:02:49.7]} 9. Nf3 {[%clk 0:02:45]} 9... e4 {[%clk 0:02:48.7]}
10. Nd4 {[%clk 0:02:44.3]} 10... e3 {[%clk 0:02:41.5]} 11. fxe3 {[%clk
0:02:21.6]} 11... Qe7 {[%clk 0:02:40.4]} 12. Bc1 {[%clk 0:01:28]} 12... Nc6
{[%clk 0:02:25.9]} 13. Nc3 {[%clk 0:01:24.7]} 13... O-O {[%clk 0:02:12.8]} 14.
Na4 {[%clk 0:01:13]} 14... Bd6 {[%clk 0:02:06.1]} 15. c3 {[%clk 0:01:05.6]}
15... Ng4 {[%clk 0:02:02.2]} 16. Bxd5 {[%clk 0:00:37.9]} 16... Nxh2 {[%clk
0:01:55.3]} 17. Nf5 {[%clk 0:00:19.9]} 17... Bxf5 {[%clk 0:01:49.9]} 18. Rxf5
{[%clk 0:00:20.8]} 18... Bxg3 {[%clk 0:01:42.3]} 19. Kg2 {[%clk 0:00:18.6]}
19... Bc7 {[%clk 0:01:39.5]} 20. e4 {[%clk 0:00:13.6]} 20... Qh4 {[%clk
0:01:34.6]} 21. Be3 {[%clk 0:00:12.1]} 21... Qg3+ {[%clk 0:01:33.6]} 22. Kh1
{[%clk 0:00:12.5]} 22... Qxe3 {[%clk 0:01:32.9]} 23. Qg1 {[%clk 0:00:08.2]}
23... Qh3 {[%clk 0:01:25.1]} 24. Qg2 {[%clk 0:00:07.4]} 24... Qh4 {[%clk
0:01:24]} 25. Kg1 {[%clk 0:00:07.8]} 25... Ng4 {[%clk 0:01:21.4]} 26. Raf1
{[%clk 0:00:05.1]} 26... Bh2+ {[%clk 0:01:19.6]} 0-1

[Event "Late-Titled-Tuesday-Blitz-June-18-2024"]
[Site "Chess.com"]
[Date "2024.06.18"]
[Round "11"]
[White "tactic"]
[Black "scandalgod"]
[Result "0-1"]
[WhiteElo "2735"]
[BlackElo "2640"]
[TimeControl "180+1"]
[EndTime "16:05:12 PDT"]
[Termination "scandalgod won by resignation"]

1. e4 {[%clk 0:03:00.9]} 1... e5 {[%clk 0:02:57.4]} 2. Nf3 {[%clk 0:03:01.2]}
2... Nc6 {[%clk 0:02:57]} 3. Bc4 {[%clk 0:03:01.8]} 3... Nf6 {[%clk 0:02:56.1]}
4. Ng5 {[%clk 0:03:02.3]} 4... d5 {[%clk 0:02:55.8]} 5. exd5 {[%clk 0:03:03.2]}
5... Na5 {[%clk 0:02:55.4]} 6. Bb5+ {[%clk 0:03:03.9]} 6... c6 {[%clk
0:02:55.1]} 7. dxc6 {[%clk 0:03:04.8]} 7... bxc6 {[%clk 0:02:53.7]} 8. Bd3
{[%clk 0:03:05.5]} 8... Nd5 {[%clk 0:02:52.5]} 9. Nf3 {[%clk 0:03:06]} 9... Bd6
{[%clk 0:02:50.9]} 10. O-O {[%clk 0:03:06.2]} 10... Nf4 {[%clk 0:02:51.4]} 11.
Re1 {[%clk 0:03:06.8]} 11... Nxd3 {[%clk 0:02:51.1]} 12. cxd3 {[%clk 0:03:07.2]}
12... O-O {[%clk 0:02:51.6]} 13. b3 {[%clk 0:03:06.6]} 13... Re8 {[%clk
0:02:50.2]} 14. Bb2 {[%clk 0:03:07]} 14... f6 {[%clk 0:02:48.8]} 15. Nc3 {[%clk
0:03:07.6]} 15... c5 {[%clk 0:02:45.4]} 16. Ne4 {[%clk 0:03:06.8]} 16... Nc6
{[%clk 0:02:43.9]} 17. a3 {[%clk 0:02:52.7]} 17... Bf8 {[%clk 0:02:37.3]} 18.
Rc1 {[%clk 0:02:51.4]} 18... Qd5 {[%clk 0:02:06.4]} 19. Qc2 {[%clk 0:02:51.6]}
19... Nd4 {[%clk 0:02:01.8]} 20. Nxd4 {[%clk 0:02:43.2]} 20... cxd4 {[%clk
0:02:01.3]} 21. Nc5 {[%clk 0:02:33.5]} 21... Bf5 {[%clk 0:01:58.3]} 22. b4
{[%clk 0:02:29]} 22... a5 {[%clk 0:01:55.4]} 23. Qc4 {[%clk 0:02:29.1]} 23...
Qxc4 {[%clk 0:01:52.9]} 24. Rxc4 {[%clk 0:02:15.6]} 24... axb4 {[%clk
0:01:49.9]} 25. axb4 {[%clk 0:02:16.5]} 25... Ra2 {[%clk 0:01:45.9]} 26. g4
{[%clk 0:01:42.3]} 26... Bg6 {[%clk 0:01:40.3]} 27. Bc1 {[%clk 0:01:22.7]} 27...
Rc8 {[%clk 0:01:38.5]} 28. f4 {[%clk 0:01:19.7]} 28... Bf7 {[%clk 0:01:34.1]}
29. fxe5 {[%clk 0:01:09.5]} 29... Bxc4 {[%clk 0:01:33.7]} 30. dxc4 {[%clk
0:01:08.7]} 30... Bxc5 {[%clk 0:01:33.5]} 31. bxc5 {[%clk 0:01:06.9]} 31... Rxc5
{[%clk 0:01:33.4]} 32. e6 {[%clk 0:00:57.6]} 32... Re5 {[%clk 0:01:31.2]} 33.
Rxe5 {[%clk 0:00:26]} 33... fxe5 {[%clk 0:01:30.9]} 34. Kf2 {[%clk 0:00:26.7]}
34... Kf8 {[%clk 0:01:30.4]} 35. Kf3 {[%clk 0:00:24.5]} 35... Ke7 {[%clk
0:01:30.5]} 36. Ke4 {[%clk 0:00:20.9]} 36... Kxe6 {[%clk 0:01:30.4]} 37. h3
{[%clk 0:00:15.9]} 37... Rc2 {[%clk 0:01:29.4]} 38. Bb2 {[%clk 0:00:16.3]} 38...
Rxb2 {[%clk 0:01:28.4]} 0-1

[Event "Late-Titled-Tuesday-Blitz-June-18-2024"]
[Site "Chess.com"]
[Date "2024.06.18"]
[Round "11"]
[White "Bryanl106"]
[Black "OverallStranger"]
[Result "1-0"]
[WhiteElo "2752"]
[BlackElo "2434"]
[TimeControl "180+1"]
[EndTime "16:05:21 PDT"]
[Termination "Bryanl106 won by resignation"]

1. e4 {[%clk 0:03:00.9]} 1... c5 {[%clk 0:03:00.5]} 2. Nf3 {[%clk 0:03:00.2]}
2... Nc6 {[%clk 0:03:01.1]} 3. d4 {[%clk 0:02:58.1]} 3... cxd4 {[%clk 0:03:02]}
4. Nxd4 {[%clk 0:02:58.9]} 4... g6 {[%clk 0:03:02.7]} 5. Be3 {[%clk 0:02:58.2]}
5... Nf6 {[%clk 0:03:01.6]} 6. Nc3 {[%clk 0:02:58.5]} 6... Bg7 {[%clk 0:03:02]}
7. Bc4 {[%clk 0:02:58.6]} 7... O-O {[%clk 0:03:01.8]} 8. Bb3 {[%clk 0:02:52.3]}
8... Re8 {[%clk 0:03:01.9]} 9. O-O {[%clk 0:02:51.8]} 9... d6 {[%clk 0:03:01.8]}
10. h3 {[%clk 0:02:50.6]} 10... Na5 {[%clk 0:03:01.5]} 11. Qd3 {[%clk
0:02:49.5]} 11... a6 {[%clk 0:02:58]} 12. Rfe1 {[%clk 0:02:44.3]} 12... b5
{[%clk 0:02:55.5]} 13. Rad1 {[%clk 0:02:43.5]} 13... Bb7 {[%clk 0:02:52.5]} 14.
Bd5 {[%clk 0:02:32.1]} 14... Nxd5 {[%clk 0:02:46.2]} 15. Nxd5 {[%clk 0:02:33]}
15... Nc4 {[%clk 0:02:44.7]} 16. Bc1 {[%clk 0:02:31.7]} 16... Nb6 {[%clk
0:02:41]} 17. Nf3 {[%clk 0:02:22.7]} 17... Rc8 {[%clk 0:02:33.2]} 18. c3 {[%clk
0:02:22.3]} 18... Nd7 {[%clk 0:02:29.5]} 19. Bg5 {[%clk 0:02:11.5]} 19... h6
{[%clk 0:02:21.6]} 20. Bh4 {[%clk 0:02:09.9]} 20... Nc5 {[%clk 0:02:17]} 21. Qe2
{[%clk 0:02:07]} 21... Ne6 {[%clk 0:01:57.1]} 22. Bg3 {[%clk 0:02:02.7]} 22...
Qa5 {[%clk 0:01:48.6]} 23. a3 {[%clk 0:01:50.4]} 23... Nc7 {[%clk 0:01:35.2]}
24. h4 {[%clk 0:01:41.1]} 24... Nxd5 {[%clk 0:01:28.9]} 25. exd5 {[%clk
0:01:40.3]} 25... Qa4 {[%clk 0:01:12.7]} 26. h5 {[%clk 0:01:31.9]} 26... g5
{[%clk 0:01:12]} 27. Nd4 {[%clk 0:01:20]} 27... Bxd5 {[%clk 0:00:56.6]} 28. Nf5
{[%clk 0:01:18.9]} 28... Bc4 {[%clk 0:00:28]} 29. Nxe7+ {[%clk 0:01:18.8]} 29...
Kf8 {[%clk 0:00:25.5]} 30. Qd2 {[%clk 0:01:18]} 30... Bb3 {[%clk 0:00:07.9]} 31.
Nxc8 {[%clk 0:01:15.5]} 31... Bxd1 {[%clk 0:00:07.3]} 32. Qxd6+ {[%clk
0:01:15.3]} 32... Kg8 {[%clk 0:00:07.4]} 33. Rxe8+ {[%clk 0:01:15.2]} 33... Kh7
{[%clk 0:00:06.9]} 34. Qd3+ {[%clk 0:01:15]} 1-0

[Event "Late-Titled-Tuesday-Blitz-June-18-2024"]
[Site "Chess.com"]
[Date "2024.06.18"]
[Round "11"]
[White "Rhinos1"]
[Black "Casper"]
[Result "0-1"]
[WhiteElo "2044"]
[BlackElo "2494"]
[TimeControl "180+1"]
[EndTime "16:05:32 PDT"]
[Termination "Casper won by checkmate"]

1. e4 {[%clk 0:02:59.2]} 1... c6 {[%clk 0:03:00.3]} 2. d3 {[%clk 0:02:50.8]}
2... d5 {[%clk 0:03:01.2]} 3. Nd2 {[%clk 0:02:47]} 3... a5 {[%clk 0:03:01.2]} 4.
Ngf3 {[%clk 0:02:38]} 4... g6 {[%clk 0:03:01.2]} 5. g3 {[%clk 0:02:37.5]} 5...
Bg7 {[%clk 0:03:01.1]} 6. c3 {[%clk 0:02:38.4]} 6... a4 {[%clk 0:02:59.4]} 7.
Bg2 {[%clk 0:02:36.6]} 7... a3 {[%clk 0:02:59.5]} 8. O-O {[%clk 0:02:29.9]} 8...
Nd7 {[%clk 0:02:55.9]} 9. Qc2 {[%clk 0:02:29.8]} 9... axb2 {[%clk 0:02:55.4]}
10. Bxb2 {[%clk 0:02:29.7]} 10... Nc5 {[%clk 0:02:55.3]} 11. d4 {[%clk
0:02:27.7]} 11... Na4 {[%clk 0:02:54.9]} 12. e5 {[%clk 0:02:25.8]} 12... Bf5
{[%clk 0:02:53.2]} 13. Qb3 {[%clk 0:02:23.4]} 13... b5 {[%clk 0:02:50.9]} 14.
Nh4 {[%clk 0:02:08.1]} 14... Bd3 {[%clk 0:02:50.7]} 15. Rfe1 {[%clk 0:02:04.3]}
15... e6 {[%clk 0:02:51]} 16. Re3 {[%clk 0:01:58.3]} 16... g5 {[%clk 0:02:36.1]}
17. Rxd3 {[%clk 0:01:47.8]} 17... gxh4 {[%clk 0:02:35.9]} 18. Nf3 {[%clk
0:01:34]} 18... hxg3 {[%clk 0:02:34]} 19. hxg3 {[%clk 0:01:34.9]} 19... h5
{[%clk 0:02:31.5]} 20. Bc1 {[%clk 0:01:29.3]} 20... Bh6 {[%clk 0:02:18.3]} 21.
Ba3 {[%clk 0:01:18.9]} 21... Nb6 {[%clk 0:02:08.5]} 22. Bc5 {[%clk 0:01:15.6]}
22... Na4 {[%clk 0:01:51.9]} 23. Bd6 {[%clk 0:01:13.4]} 23... Ne7 {[%clk
0:01:51.3]} 24. Nh4 {[%clk 0:01:08.6]} 24... Bg5 {[%clk 0:01:49.2]} 25. Qd1
{[%clk 0:01:01.2]} 25... Bxh4 {[%clk 0:01:40.4]} 26. gxh4 {[%clk 0:00:59.9]}
26... Nb2 {[%clk 0:01:40.9]} 27. Qf3 {[%clk 0:00:54.3]} 27... Nxd3 {[%clk
0:01:39.9]} 28. Qxd3 {[%clk 0:00:55.1]} 28... Nf5 {[%clk 0:01:39.5]} 29. Bc5
{[%clk 0:00:46.9]} 29... Rg8 {[%clk 0:01:39.8]} 30. a4 {[%clk 0:00:18]} 30...
Qxh4 {[%clk 0:01:36.6]} 31. a5 {[%clk 0:00:13.6]} 31... Qg4 {[%clk 0:01:34.7]}
32. Qf1 {[%clk 0:00:02.8]} 32... Nh4 {[%clk 0:01:35.1]} 33. f3 {[%clk
0:00:01.7]} 33... Qxg2+ {[%clk 0:01:24.4]} 34. Qxg2 {[%clk 0:00:01.2]} 34...
Rxg2+ {[%clk 0:01:25.3]} 35. Kh1 {[%clk 0:00:01.7]} 35... Rc2 {[%clk 0:01:22.9]}
36. a6 {[%clk 0:00:01.4]} 36... Nxf3 {[%clk 0:01:22.8]} 37. a7 {[%clk
0:00:02.1]} 37... Rh2# {[%clk 0:01:22.7]} 0-1

[Event "Late-Titled-Tuesday-Blitz-June-18-2024"]
[Site "Chess.com"]
[Date "2024.06.18"]
[Round "11"]
[White "yaguigor"]
[Black "unbreakablepawn35"]
[Result "1-0"]
[WhiteElo "2626"]
[BlackElo "2434"]
[TimeControl "180+1"]
[EndTime "16:05:33 PDT"]
[Termination "yaguigor won by resignation"]

1. d4 {[%clk 0:03:00.9]} 1... Nf6 {[%clk 0:02:59.6]} 2. c4 {[%clk 0:02:59.4]}
2... g6 {[%clk 0:02:59.5]} 3. Nc3 {[%clk 0:02:58.7]} 3... d5 {[%clk 0:02:59.5]}
4. Nf3 {[%clk 0:02:54.7]} 4... Bg7 {[%clk 0:02:58.1]} 5. Bg5 {[%clk 0:02:52.1]}
5... c6 {[%clk 0:02:58.5]} 6. e3 {[%clk 0:02:45.3]} 6... O-O {[%clk 0:02:57.3]}
7. Qb3 {[%clk 0:02:39.7]} 7... dxc4 {[%clk 0:02:49.7]} 8. Bxc4 {[%clk
0:02:37.9]} 8... e6 {[%clk 0:02:40.7]} 9. O-O {[%clk 0:02:34.2]} 9... Nbd7
{[%clk 0:02:40.7]} 10. Ne5 {[%clk 0:02:31.8]} 10... Qc7 {[%clk 0:02:22.2]} 11.
f4 {[%clk 0:02:17.2]} 11... Nd5 {[%clk 0:01:55.7]} 12. Bxd5 {[%clk 0:02:05.6]}
12... exd5 {[%clk 0:01:55.3]} 13. Rac1 {[%clk 0:02:01.4]} 13... Qd6 {[%clk
0:01:30.4]} 14. Bh4 {[%clk 0:01:52.8]} 14... f6 {[%clk 0:01:28.5]} 15. Nd3
{[%clk 0:01:49.8]} 15... Kh8 {[%clk 0:01:25.1]} 16. f5 {[%clk 0:01:45.7]} 16...
Nb6 {[%clk 0:01:16.3]} 17. fxg6 {[%clk 0:01:44.2]} 17... hxg6 {[%clk 0:01:17.2]}
18. Bg3 {[%clk 0:01:36.8]} 18... Qe7 {[%clk 0:01:12.9]} 19. Rce1 {[%clk
0:01:35.6]} 19... Bf5 {[%clk 0:01:08.9]} 20. Nc5 {[%clk 0:01:31.3]} 20... Rae8
{[%clk 0:00:51.5]} 21. e4 {[%clk 0:01:29.1]} 21... dxe4 {[%clk 0:00:51.5]} 22.
N3xe4 {[%clk 0:01:28.4]} 22... Bxe4 {[%clk 0:00:51.5]} 23. Rxe4 {[%clk
0:01:27.6]} 23... Qxe4 {[%clk 0:00:39]} 24. Nxe4 {[%clk 0:01:26.3]} 24... Rxe4
{[%clk 0:00:39.9]} 25. Bd6 {[%clk 0:01:21.2]} 25... Rfe8 {[%clk 0:00:34.2]} 26.
Bc5 {[%clk 0:01:21.6]} 26... f5 {[%clk 0:00:31.9]} 27. a4 {[%clk 0:01:11.1]}
27... Bxd4+ {[%clk 0:00:19.1]} 28. Bxd4+ {[%clk 0:01:09.9]} 28... Rxd4 {[%clk
0:00:19.8]} 29. a5 {[%clk 0:01:09.4]} 29... Nd5 {[%clk 0:00:18.8]} 30. Qxb7
{[%clk 0:01:07.8]} 30... Re2 {[%clk 0:00:14.5]} 31. Qb8+ {[%clk 0:01:03.6]}
31... Kh7 {[%clk 0:00:09]} 32. Qxa7+ {[%clk 0:01:04.1]} 32... Kh6 {[%clk
0:00:09.6]} 33. Qxd4 {[%clk 0:01:03.7]} 1-0

[Event "Late-Titled-Tuesday-Blitz-June-18-2024"]
[Site "Chess.com"]
[Date "2024.06.18"]
[Round "11"]
[White "HouseOfDurin"]
[Black "ploxoi"]
[Result "0-1"]
[WhiteElo "2334"]
[BlackElo "2487"]
[TimeControl "180+1"]
[EndTime "16:05:33 PDT"]
[Termination "ploxoi won by resignation"]

1. d4 {[%clk 0:03:00.9]} 1... d5 {[%clk 0:02:59.4]} 2. Bg5 {[%clk 0:03:01]} 2...
Nf6 {[%clk 0:02:59.1]} 3. Bxf6 {[%clk 0:03:01.1]} 3... exf6 {[%clk 0:02:57.5]}
4. e3 {[%clk 0:03:01.7]} 4... Bd6 {[%clk 0:02:57.9]} 5. c4 {[%clk 0:03:01.8]}
5... c6 {[%clk 0:02:51.7]} 6. cxd5 {[%clk 0:03:01.9]} 6... cxd5 {[%clk
0:02:51.9]} 7. Nc3 {[%clk 0:03:02.2]} 7... Be6 {[%clk 0:02:51.4]} 8. a3 {[%clk
0:02:59.6]} 8... O-O {[%clk 0:02:51.9]} 9. g3 {[%clk 0:02:59.9]} 9... a5 {[%clk
0:02:52]} 10. Bg2 {[%clk 0:02:59.7]} 10... Qb6 {[%clk 0:02:50.6]} 11. Rb1 {[%clk
0:02:55.5]} 11... Qc6 {[%clk 0:02:46]} 12. Qb3 {[%clk 0:02:35.3]} 12... a4
{[%clk 0:02:41.1]} 13. Qa2 {[%clk 0:02:35.2]} 13... Ra5 {[%clk 0:02:32.2]} 14.
Nge2 {[%clk 0:02:31.1]} 14... Nd7 {[%clk 0:02:29.6]} 15. O-O {[%clk 0:02:30.4]}
15... f5 {[%clk 0:02:25.3]} 16. Rfc1 {[%clk 0:02:29.7]} 16... Qa6 {[%clk
0:02:24.1]} 17. Rc2 {[%clk 0:02:16.4]} 17... f4 {[%clk 0:02:22]} 18. gxf4 {[%clk
0:02:15.7]} 18... Bf5 {[%clk 0:02:22.2]} 19. Rbc1 {[%clk 0:02:01.5]} 19... Bxc2
{[%clk 0:02:21.3]} 20. Rxc2 {[%clk 0:02:02.4]} 20... Nf6 {[%clk 0:02:18.5]} 21.
Nxd5 {[%clk 0:01:46.9]} 21... Nxd5 {[%clk 0:02:17.5]} 22. Bxd5 {[%clk
0:01:47.8]} 22... Qd3 {[%clk 0:02:17.5]} 23. Be4 {[%clk 0:01:47.6]} 23... Qd1+
{[%clk 0:02:15.1]} 24. Kg2 {[%clk 0:01:44.5]} 24... Re8 {[%clk 0:02:11.5]} 25.
b4 {[%clk 0:01:27.2]} 25... axb3 {[%clk 0:02:02.5]} 26. Qxb3 {[%clk 0:01:27.1]}
26... Qa1 {[%clk 0:01:47.8]} 27. Qxb7 {[%clk 0:01:19.2]} 27... Qxa3 {[%clk
0:01:42.4]} 28. Rc8 {[%clk 0:01:19]} 28... Rxc8 {[%clk 0:01:39.7]} 29. Qxc8+
{[%clk 0:01:19.9]} 29... Bf8 {[%clk 0:01:40.1]} 30. Bxh7+ {[%clk 0:01:15.9]}
30... Kxh7 {[%clk 0:01:39.1]} 31. Ng3 {[%clk 0:01:09.3]} 31... g6 {[%clk
0:01:30.4]} 32. Ne4 {[%clk 0:00:58.1]} 32... Kg7 {[%clk 0:01:23.9]} 33. Ng5
{[%clk 0:00:49.2]} 33... Be7 {[%clk 0:01:19.5]} 34. Nf3 {[%clk 0:00:32.4]} 34...
Qd6 {[%clk 0:01:14.9]} 35. Ne5 {[%clk 0:00:24.7]} 35... Qd5+ {[%clk 0:01:13.7]}
36. Kg3 {[%clk 0:00:20.4]} 36... Ra1 {[%clk 0:01:11.3]} 37. Qe8 {[%clk
0:00:18.3]} 37... Rg1+ {[%clk 0:01:10.6]} 0-1

[Event "Late-Titled-Tuesday-Blitz-June-18-2024"]
[Site "Chess.com"]
[Date "2024.06.18"]
[Round "11"]
[White "Gyulamiryan-koryun"]
[Black "Roland_Garros_2024"]
[Result "0-1"]
[WhiteElo "1674"]
[BlackElo "2209"]
[TimeControl "180+1"]
[EndTime "16:05:40 PDT"]
[Termination "Roland_Garros_2024 won on time"]

1. e4 {[%clk 0:03:00.9]} 1... c5 {[%clk 0:03:00.1]} 2. Nf3 {[%clk 0:03:00.1]}
2... d6 {[%clk 0:03:00.6]} 3. d4 {[%clk 0:03:00.2]} 3... cxd4 {[%clk 0:03:01.5]}
4. Nxd4 {[%clk 0:03:00.1]} 4... Nf6 {[%clk 0:03:02.2]} 5. Nc3 {[%clk 0:02:59.1]}
5... a6 {[%clk 0:03:02.6]} 6. Be3 {[%clk 0:02:57.8]} 6... e5 {[%clk 0:03:02.5]}
7. Nb3 {[%clk 0:02:57.1]} 7... Be6 {[%clk 0:03:03]} 8. f3 {[%clk 0:02:57.3]}
8... Be7 {[%clk 0:03:03.4]} 9. Qd2 {[%clk 0:02:57.6]} 9... h5 {[%clk 0:03:04.1]}
10. O-O-O {[%clk 0:02:57.3]} 10... Nbd7 {[%clk 0:03:04.2]} 11. f4 {[%clk
0:02:49.1]} 11... Rc8 {[%clk 0:02:55.3]} 12. f5 {[%clk 0:02:48.1]} 12... Bc4
{[%clk 0:02:50.5]} 13. Nd5 {[%clk 0:02:36.3]} 13... Nxe4 {[%clk 0:02:38.2]} 14.
Qe1 {[%clk 0:02:21.5]} 14... Bxd5 {[%clk 0:02:29.7]} 15. Rxd5 {[%clk 0:02:20.4]}
15... Qc7 {[%clk 0:02:22.9]} 16. Bd3 {[%clk 0:02:07]} 16... Ndf6 {[%clk
0:02:13.3]} 17. Ra5 {[%clk 0:01:51.2]} 17... d5 {[%clk 0:02:05.2]} 18. Bd2
{[%clk 0:01:21.6]} 18... O-O {[%clk 0:01:54.9]} 19. h3 {[%clk 0:00:51.8]} 19...
Nxd2 {[%clk 0:01:35.6]} 20. Qxd2 {[%clk 0:00:50.7]} 20... e4 {[%clk 0:01:36.1]}
21. Be2 {[%clk 0:00:46]} 21... Bb4 {[%clk 0:01:36.5]} 22. c3 {[%clk 0:00:32.6]}
22... Bxa5 {[%clk 0:01:36.5]} 23. Nxa5 {[%clk 0:00:32.7]} 23... Qxa5 {[%clk
0:01:37.4]} 24. Kb1 {[%clk 0:00:32.7]} 24... Rfd8 {[%clk 0:01:34.8]} 25. Qd4
{[%clk 0:00:20.7]} 25... Qc5 {[%clk 0:01:28.8]} 26. g4 {[%clk 0:00:18.4]} 26...
Qxd4 {[%clk 0:01:28.4]} 27. cxd4 {[%clk 0:00:18.4]} 27... hxg4 {[%clk
0:01:29.3]} 28. hxg4 {[%clk 0:00:18.1]} 28... g5 {[%clk 0:01:19.3]} 29. fxg6
{[%clk 0:00:14.9]} 29... fxg6 {[%clk 0:01:19.7]} 30. g5 {[%clk 0:00:14.9]} 30...
Nh5 {[%clk 0:01:17.2]} 31. Bg4 {[%clk 0:00:13]} 31... Rc7 {[%clk 0:01:12.7]} 32.
Be6+ {[%clk 0:00:12.6]} 32... Kg7 {[%clk 0:01:12.9]} 33. Rf1 {[%clk 0:00:04.4]}
33... Rd6 {[%clk 0:01:10.5]} 34. Bg4 {[%clk 0:00:02.2]} 34... Rf7 {[%clk
0:01:10.6]} 0-1